Cogmind - Beta 10.2 @@@ ROGUE MODE // 2021.11.05 @ 06:38:00 Player: dark Result: Self-destructed Performance ------------- Evolutions (2) 1000 Regions Visited (4) 800 Robots Destroyed (9) 45 Value Destroyed (102) 102 Prototype IDs (2) 40 Alien Tech Used (0) 0 Bonus (0) 0 TOTAL SCORE: 1987 Bonus ------- None Cogmind --------- Core Integrity 537/550 Matter 300/300 Energy 123/125 System Corruption 0% Temperature Cool (2) Movement Flying (40) Location -8/Materials Parts ------- > --- POWER (2) -------- Light Ion Engine > --- PROPULSION (3) --- Flight Unit > --- UTILITY (4) ------ Hacking Suite > --- WEAPON (2) ------- (None) > --- INVENTORY (4) ---- Small Storage Unit Light Armor Plating EMP Blaster Peak State ------------ > --- POWER ------------ Ion Engine > --- PROPULSION ------- Flight Unit Flight Unit > --- UTILITY ---------- Light Armor Plating Hacking Suite > --- WEAPON ----------- (None) > --- INVENTORY -------- Light Ion Engine Small Storage Unit Assault Rifle [Rating: 7] Favorites ----------- Power Ion Engine Engine Ion Engine Propulsion Flight Unit Wheel Compact Wheel Flight Unit Flight Unit Utility Hacking Suite Hackware Hacking Suite Protection Light Armor Plating Weapon Assault Rifle Ballistic Gun Assault Rifle Launcher EMP Blaster Build | -11 -10 -9 -9 -8 ------- Run | Scr Mat Mat Min Mat Slots Evolved 4 | . . 2 . 2 Power 1 | . . . . 1 Propulsion 1 | . . 1 . . Utility 2 | . . 1 . 1 Weapon . | . . . . . Parts Attached 14 | 5 6 . 3 . Power 3 | 2 . . 1 . Engine 3 | 2 . . 1 . Core . | . . . . . Reactor . | . . . . . Propulsion 6 | 2 3 . 1 . Treads . | . . . . . Leg . | . . . . . Wheel 2 | 2 . . . . Hover . | . . . . . Flight 4 | . 3 . 1 . Utility 2 | . 2 . . . Device . | . . . . . Storage . | . . . . . Processor . | . . . . . Hackware 1 | . 1 . . . Protection 1 | . 1 . . . Artifact . | . . . . . Weapon 3 | 1 1 . 1 . Energy Gun . | . . . . . Energy Cannon . | . . . . . Ballistic Gun 2 | 1 1 . . . Ballistic Cannon . | . . . . . Launcher 1 | . . . 1 . Special Weapon . | . . . . . Impact Weapon . | . . . . . Slashing Weapon . | . . . . . Piercing Weapon . | . . . . . Special Melee Weapon . | . . . . . Unidentified Prototypes . | . . . . . Parts Lost 3 | . 1 2 . . Power . | . . . . . Propulsion 3 | . 1 2 . . Utility . | . . . . . Weapon . | . . . . . Highest Loss Streak 1 | . 1 1 . . Average Slot Usage (%) 51 | . 61 29 36 27 Engine 11 | . 14 3 11 9 Wheel 4 | . 6 . . . Flight 18 | . 22 12 3 9 Hackware 6 | . 4 11 11 9 Protection 5 | . 7 3 . . Ballistic Gun 4 | . 7 . . . Naked Turns . | . . . . . Heaviest Build 10 | 7 10 8 7 3 Greatest Support 32 | 32 32 8 4 4 Greatest Overweight (x) 2 | . 1 . 2 . Average Overweight (x) . | . . . . . Largest Inventory Capacity 4 | 4 4 4 4 4 Average Capacity 4 | 4 4 4 4 4 Most Carried 4 | 4 4 4 4 3 Average Carried 3 | 3 3 3 2 3 Final Capacity 4 | 4 4 4 4 4 Final Carried 4 | 4 3 4 3 3 Class Distribution -------------------- 100% | Mutant Dominant Class ---------------- Mutant | -10/Materials Mutant | -9/Materials Mutant | -9/Mines Mutant | -8/Materials Resources | -11 -10 -9 -9 -8 ----------- Run | Scr Mat Mat Min Mat Matter Collected 383 | 224 56 54 49 . Remotely . | . . . . . Salvage Created 186 | . 56 . 130 . Parts 18 | . 11 . 7 . Haulers Intercepted . | . . . . . Recyclers Shooed 3 | . 3 . . . Parts Field Recycled . | . . . . . Retrieved Matter . | . . . . . Parts Self-Destructed . | . . . . . Prevented . | . . . . . Kills | -11 -10 -9 -9 -8 ------- Run | Scr Mat Mat Min Mat Combat Hostiles Destroyed 7 | . 3 . 4 . Guns 3 | . 3 . . . AOE 4 | . . . 4 . Classes Destroyed 3 | . 2 . 1 . Recycler 1 | . . . 1 . Operator 1 | . 1 . . . Swarmer 7 | . 3 . 4 . Best Kill Streak 5 | . 3 . 5 . Combat Bots Only 4 | . 3 . 4 . Max Kills in Single Turn 3 | . 1 . 3 . Gunslinging . | . . . . . Exploded 2 | . . . 2 . Melee . | . . . . . Uniques/NPCs Destroyed . | . . . . . Combat | -11 -10 -9 -9 -8 -------- Run | Scr Mat Mat Min Mat Damage Taken 606 | . 266 127 200 13 Core 263 | . 43 82 125 13 Absorbed by Shields . | . . . . . Core Remaining (%) 76 | 100 82 . 48 . Volleys Fired 18 | . 14 . 4 . Largest 1 | . 1 . 1 . Hottest 33 | . 20 . 33 . Shots Fired 18 | . 14 . 4 . Gun 14 | . 14 . . . Cannon . | . . . . . Launcher 4 | . . . 4 . Special . | . . . . . Kinetic 14 | . 14 . . . Thermal . | . . . . . Explosive . | . . . . . Electromagnetic 4 | . . . 4 . Robot Hit Streak 2 | . 2 . 2 . Robot Miss Streak 3 | . 3 . 1 . Penetration Max . | . . . . . Secondary Targets . | . . . . . Shots Hit Robots 8 | . 6 . 2 . Core Hits 12 | . 5 . 7 . Critical Hits . | . . . . . Critical Kills . | . . . . . Critical Parts Destroyed . | . . . . . Melee Attacks . | . . . . . Impact . | . . . . . Slashing . | . . . . . Piercing . | . . . . . Sneak Attacks . | . . . . . Combat Hostiles . | . . . . . Follow-up Attacks . | . . . . . Damage Inflicted 272 | . 102 . 170 . Guns 86 | . 86 . . . Cannons . | . . . . . Explosions 186 | . 16 . 170 . Melee . | . . . . . Ramming . | . . . . . Kinetic 86 | . 86 . . . Thermal 55 | . 16 . 39 . Explosive . | . . . . . Electromagnetic 131 | . . . 131 . Impact . | . . . . . Slashing . | . . . . . Piercing . | . . . . . Highest Corruption . | . . . . . Average Corruption . | . . . . . Corruption Purged . | . . . . . Overload Shots . | . . . . . Overflow Damage 1 | . . . 1 . Projectiles . | . . . . . Explosions 1 | . . . 1 . Melee . | . . . . . Knockbacks . | . . . . . Impact . | . . . . . Kinetic . | . . . . . Secondary . | . . . . . Self-Inflicted Damage 150 | . 98 . 52 . Shots 6 | . 1 . 5 . Rammed . | . . . . . Targets Rammed . | . . . . . Kicked . | . . . . . Crushed . | . . . . . Highest Temperature 13 | . 13 . 5 . Average Temperature 7 | . 13 . 5 . Received Heat Transfer 105 | . 36 69 . . Siege Activations . | . . . . . Robots Corrupted . | . . . . . Combat Hostiles . | . . . . . Parts Fried . | . . . . . Impact Corruptions . | . . . . . Robots Melted . | . . . . . Combat Hostiles . | . . . . . Parts Melted . | . . . . . Heat Transferred 150 | . 50 . 100 . Parts Sabotaged . | . . . . . Parts Stolen . | . . . . . Parts Stripped . | . . . . . Power Chain Reactions 2 | . . . 2 . Missiles Intercepted . | . . . . . Alert | -11 -10 -9 -9 -8 ------- Run | Scr Mat Mat Min Mat Peak Influence 252 | . 252 174 173 96 Initial 105 | . . 105 63 66 Average 110 | . 124 145 138 77 Maximum Alert Level 1 | . 1 . . . Low Security (%) 88 | 100 81 100 100 100 Level 1 11 | . 18 . . . Level 2 . | . . . . . Level 3 . | . . . . . Level 4 . | . . . . . Level 5 . | . . . . . High Security . | . . . . . Max Security . | . . . . . Squads Dispatched 2 | . 1 1 . . Investigation . | . . . . . Extermination . | . . . . . Reinforcement 2 | . 1 1 . . Assault . | . . . . . Garrison . | . . . . . Intercept . | . . . . . Construction Impeded . | . . . . . Haulers Reinforced . | . . . . . Stealth | -11 -10 -9 -9 -8 --------- Run | Scr Mat Mat Min Mat Distress Signals 4 | . 1 3 . . Communications Jammed . | . . . . . Distress Signals . | . . . . . Times Spotted 35 | . 15 15 4 1 Peak Tracking Total 16 | . 5 16 4 1 Tactical Retreats 2 | . 2 . . . Traps | -11 -10 -9 -9 -8 ------- Run | Scr Mat Mat Min Mat Traps Triggered . | . . . . . Indirectly . | . . . . . Trap Hack Attempts . | . . . . . Triggered . | . . . . . Disarmed . | . . . . . Reprogrammed . | . . . . . Reused . | . . . . . Traps Extracted . | . . . . . Installed . | . . . . . Triggered . | . . . . . Machines | -11 -10 -9 -9 -8 ---------- Run | Scr Mat Mat Min Mat Machines Disabled 1 | . 1 . . . Max in Single Turn 1 | . 1 . . . Machines Sabotaged . | . . . . . Garrisons Compromised . | . . . . . Overloaded Fab Kills . | . . . . . Fab Network Shutdowns . | . . . . . Hacking | -11 -10 -9 -9 -8 --------- Run | Scr Mat Mat Min Mat Machines Accessed 8 | . 7 1 . . Terminals 8 | . 7 1 . . Fabricators . | . . . . . Repair Stations . | . . . . . Recycling Units . | . . . . . Scanalyzers . | . . . . . Garrison Access . | . . . . . Total Hacks 26 | . 23 3 . . Successful 17 | . 15 2 . . Failed 9 | . 8 1 . . Catastrophic . | . . . . . Database Lockouts . | . . . . . Manual 19 | . 17 2 . . Terminals 26 | . 23 3 . . Fabricators . | . . . . . Repair Stations . | . . . . . Recycling Units . | . . . . . Scanalyzers . | . . . . . Garrison Access . | . . . . . Terminal Hacks 7 | . 6 1 . . Prototype ID Bank 1 | . 1 . . . Machine Index 1 | . 1 . . . Terminal Index 1 | . 1 . . . Locate Traps 1 | . 1 . . . Patrol Status 1 | . 1 . . . Hauler Manifests 1 | . 1 . . . Zone Layout 1 | . . 1 . . Fabricator Hacks . | . . . . . Repair Station Hacks . | . . . . . Recycling Unit Hacks . | . . . . . Scanalyzer . | . . . . . Garrison Access Hacks . | . . . . . Unauthorized Hacks 10 | . 9 1 . . Terminals 10 | . 9 1 . . Botnet 8 | . 7 1 . . Disrupt 1 | . 1 . . . Operators 1 | . 1 . . . Fabricators . | . . . . . Repair Stations . | . . . . . Recycling Units . | . . . . . Scanalyzers . | . . . . . Garrison Access . | . . . . . Data Cores Recovered . | . . . . . Used . | . . . . . Hacking Detections 8 | . 7 1 . . Full Trace Events . | . . . . . Feedback Events . | . . . . . Feedback Blocked . | . . . . . Robot Schematics Acquired . | . . . . . Robots Built . | . . . . . Matter . | . . . . . Time . | . . . . . Total Robot Build Rating . | . . . . . Part Schematics Acquired . | . . . . . Parts Built . | . . . . . Matter . | . . . . . Time . | . . . . . Total Part Build Rating . | . . . . . Parts Repaired . | . . . . . Time . | . . . . . Parts Recycled . | . . . . . Recycled Matter . | . . . . . Retrieved Matter . | . . . . . Retrieved Components . | . . . . . Parts Scanalyzed . | . . . . . Part Schematics Acquired . | . . . . . Parts Damaged . | . . . . . Bothacking | -11 -10 -9 -9 -8 ------------ Run | Scr Mat Mat Min Mat Used RIF Installer . | . . . . . Robots Hacked . | . . . . . Non-combat . | . . . . . Combat . | . . . . . Robot Hacks Applied . | . . . . . Relay Couplers Released . | . . . . . Robots Rewired . | . . . . . Allies Hacked . | . . . . . Hacks Repelled . | . . . . . Allies | -11 -10 -9 -9 -8 -------- Run | Scr Mat Mat Min Mat Total Allies . | . . . . . Largest Group . | . . . . . Highest-Rated Group . | . . . . . Highest-Rated Ally . | . . . . . Total Orders . | . . . . . Ally Attacks . | . . . . . Total Damage . | . . . . . Kills . | . . . . . Allies Corrupted . | . . . . . Allies Melted . | . . . . . Intel | -11 -10 -9 -9 -8 ------- Run | Scr Mat Mat Min Mat Robot Analysis Total . | . . . . . Derelict Logs Recovered . | . . . . . Drone Launches . | . . . . . Drone Recoveries . | . . . . . Exploration | -11 -10 -9 -9 -8 ------------- Run | Scr Mat Mat Min Mat Turns Passed 465 | 57 276 68 33 31 Spaces Moved 822 | 50 518 159 18 77 Core 35 | 13 . 17 5 . Treads . | . . . . . Legs . | . . . . . Wheels 62 | 37 25 . . . Hover . | . . . . . Flight 725 | . 493 142 13 77 Fastest Speed 37 | 50 37 37 40 40 Average Speed 44 | 87 40 40 69 40 Slowest Speed 150 | 100 120 50 150 40 Overloaded Moves . | . . . . . Propulsion Burnouts . | . . . . . Robots Hopped 6 | . 3 3 . . Cave-ins Triggered . | . . . . . Exploration Rate (%) 27 | 4 88 32 7 8 Regions Visited 4 Branch Regions 1 Pre-discovered Areas . | . . . . . Known Exits Taken . | . . . . . Unknown Exits Taken 4 | 1 1 1 1 . Scrap Searched . | . . . . . Spaces Dug . | . . . . . Terrain Destroyed 28 | . 25 . 3 . Melee . | . . . . . Projectile . | . . . . . AOE 28 | . 25 . 3 . Terrain Rammed . | . . . . . Walls Destroyed . | . . . . . Machines Disabled . | . . . . . Actions | -11 -10 -9 -9 -8 --------- Run | Scr Mat Mat Min Mat Total 900 | 63 565 161 34 77 Wait 35 | . 25 2 8 . Move 806 | 49 511 152 17 77 Hop 6 | . 3 3 . . Pick Up 11 | 8 1 1 1 . Fast Attach 5 | 1 4 . . . Attach 8 | 3 2 . 3 . Detach 3 | . 1 1 1 . Swap 1 | 1 . . . . Drop 7 | 1 4 2 . . Fire 18 | . 14 . 4 . Melee . | . . . . . Ram . | . . . . . Kick . | . . . . . Crush . | . . . . . Escape Stasis . | . . . . . Rewire . | . . . . . Trap . | . . . . . Miscellaneous . | . . . . . Route ------- -11/Scrapyard -10/Materials (discovered 3 exits: *Mat x3) -9/Materials -9/Mines -8/Materials History --------- Turn | Location | Event 8 | -11/Scrapyard | Discovered new exit (range 16) 58 | -11/Scrapyard | Entered Materials 186 | -10/Materials | Discovered new exit (range 10) 277 | -10/Materials | Discovered new exit (range 4) 314 | -10/Materials | Build established: Mutant 330 | -10/Materials | Discovered new exit (range 11) 334 | -10/Materials | Entered another Materials area 334 | -9/Materials | Evolved 2 slots: Propulsion x1, Utility x1 398 | -9/Materials | Discovered new exit (range 8) 402 | -9/Materials | Entered Mines 421 | -9/Mines | Core integrity fell below 50% 431 | -9/Mines | Discovered new exit (range 8) 435 | -9/Mines | Entered Materials 435 | -8/Materials | Evolved 2 slots: Power x1, Utility x1 466 | -8/Materials | Self-destructed Last Messages --------------- Destroyed Flight Unit. K-01 Serf collects debris. S-10 Pest IFF system glitched. R-06 Scavenger collects Lgt. Assault Rifle. S-10 Pest destroyed. R-06 Scavenger destroyed. Chain reaction triggered in Lgt. Ion Engine. S-10 Pest destroyed. Chain reaction triggered in Lgt. Ion Engine. S-10 Pest destroyed. K-01 Serf collects debris. Acquired Flight Unit. Acquired 15 matter. K-01 Serf collects debris. Acquired 34 matter. EXIT=FOUND K-01 Serf collects debris. PARAMETERS=POWER_1,UTILITY_1 LOCATION=UNKNOWN GOAL=ESCAPE Map ----- +----------------------------------------------------+ | | | | | | | | | | | | | | | | | ?????????????????????????????????????????????????? | | ?????????????????????????????????????????????????? | | ?????????????????????????????????????????????????? | | ?????????????????????????????????????????????????? | | ?????#########???????????????????????????????????? | | ###### #???????????????????????????????????? | | ###########?????????????????????????? | | # #?????????????????????????? | | # #?????????????????????????? | | ######## # """ """ #?????????????????????????? | | ?????????# # """ """ #?????????????????????????? | | ????#####??# + """ """ #?????????????????????????? | | ????# #??# # """ """ #?????????????????????????? | | ????# #??# # """ """ #?????????????????????????? | | ????# #??# # ?????????????? ?????????? | | ????# #### #####+############# ????????? | | ????# g????????? | | ????# @ ????????? | | ????# a a ????????? | | ????# #####+######+#############+#####???????????? | | ????# #?? ?? ????????????????????????????? | | ????# #?# """ #""" ??????????????????????????? | | ????# #?# """ #""" #????????????????????????? | | ????# #?# """ #""" #????????????????????????? | | ????# #?# # #????????????????????????? | | ????# #?# # "" #????????????????????????? | | ????# #?######## Y" #????????????????????????? | | ????# #????????#] "" #????????????????????????? | | ????# #?????????? ?#????????????????????????? | | ????? ?????????????###???????????????????????????? | | ????? ???????????????????????????????????????????? | | ????? ???????????????????????????????????????????? | | ????? ???????????????????????????????????????????? | | ????? ???????????????????????????????????????????? | | ?????=???????????????????????????????????????????? | | ????? ???????????????????????????????????????????? | | ?????????????????????????????????????????????????? | | ?????????????????????????????????????????????????? | | ?????????????????????????????????????????????????? | | ?????????????????????????????????????????????????? | | ?????????????????????????????????????????????????? | | ?????????????????????????????????????????????????? | +----------------------------------------------------+ Best States ------------- Heat Dissipation 31 Energy Generation 10 Energy Capacity 250 Matter Stores 300 Matter Capacity 300 Sight Range 16 Terrain Scan Density 10 Armor Coverage 150 Evasion (%) 62 Offensive Hacking 10 Item Schematics ----------------- None Robot Schematics ------------------ None Fabricated ------------ Nothing Alien Tech Used ----------------- None Achievements -------------- None Challenges ------------ None Game ------ Seed TerrabombThrusterNukerbomber Manual? 0 Play Time 00:11:41 Cumulative 85.7 hours Start 2021.11.05 @ 06:25:38 End 2021.11.05 @ 06:38:00 Sessions 1 Manual Loads 0 Difficulty Rogue Special Mode None Game No. 124 Rogue 90 Adventurer 11 Explorer 23 Win Type - Total 0 Types 0/0/0/0/0/0/0/0/0 Lore% 42 Gallery% 62 Achievement% 36 Wizard Run 0 Options --------- ASCII 0 Keyboard 0 Movement Mouse Keybinds 0 Fullscreen 2 Font 18/SmallcapsGlow Map View 76x50 Tactical HUD 0 Map Filters NONE Filters NONE Steam 1 RUN: 80028063-a1c4-47fc-9f25-8e83be5001a8